Cogmind - Beta 12 @@@ ROGUE MODE // 2023.10.12 @ 14:12:57 Player: Figgis Result: Self-destructed Performance ------------- Evolutions (1) 500 Regions Visited (3) 600 Robots Destroyed (18) 90 Value Destroyed (635) 635 Prototype IDs (1) 20 Alien Tech Used (0) 0 Bonus (0) 0 TOTAL SCORE: 1845 Bonus ------- None Cogmind --------- Core Integrity 206/400 Matter 158/300 Energy 250/250 System Corruption 0% Temperature Cool (17) Movement Walking (120) Location -9/Materials Parts ------- > --- POWER (1) -------- Ion Engine > --- PROPULSION (3) --- Aluminum Leg Aluminum Leg Aluminum Leg > --- UTILITY (3) ------ Large Storage Unit > --- WEAPON (2) ------- Assault Rifle Autogun > --- INVENTORY (15) --- Light Ion Engine Improved Ion Engine Light Nuclear Core Aluminum Leg Aluminum Leg Aluminum Leg Improved Aluminum Leg Improved Heat Sink Experimental Sensor Array EM Pulse Gun Grenade Launcher Peak State ------------ > --- POWER ------------ Ion Engine > --- PROPULSION ------- Aluminum Leg Aluminum Leg > --- UTILITY ---------- Improved Heat Sink Large Storage Unit Experimental Sensor Array > --- WEAPON ----------- Assault Rifle Assault Rifle > --- INVENTORY -------- Light Ion Engine Light Nuclear Core Aluminum Leg Aluminum Leg Aluminum Leg Aluminum Leg EM Pulse Gun Grenade Launcher [Rating: 19] Favorites ----------- Power Ion Engine Engine Ion Engine Propulsion Aluminum Leg Leg Aluminum Leg Utility Large Storage Unit Device Experimental Sensor Array Storage Large Storage Unit Protection Light Armor Plating Weapon Assault Rifle Energy Gun EM Pulse Gun Ballistic Gun Assault Rifle Build | -11 -10 -10 -9 ------- Run | Jun Mat Min Mat Slots Evolved 2 | . . . 2 Power . | . . . . Propulsion 1 | . . . 1 Utility 1 | . . . 1 Weapon . | . . . . Parts Attached 22 | 7 1 1 13 Power 3 | 1 . . 2 Engine 3 | 1 . . 2 Core . | . . . . Reactor . | . . . . Propulsion 8 | 2 . . 6 Treads . | . . . . Leg 8 | 2 . . 6 Wheel . | . . . . Hover . | . . . . Flight . | . . . . Utility 5 | 1 1 1 2 Device 2 | . . 1 1 Storage 2 | 1 1 . . Processor . | . . . . Hackware . | . . . . Protection 1 | . . . 1 Artifact . | . . . . Weapon 6 | 3 . . 3 Energy Gun 1 | 1 . . . Energy Cannon . | . . . . Ballistic Gun 5 | 2 . . 3 Ballistic Cannon . | . . . . Launcher . | . . . . Special Weapon . | . . . . Impact Weapon . | . . . . Slashing Weapon . | . . . . Piercing Weapon . | . . . . Special Melee Weapon . | . . . . Unidentified Prototypes 1 | . . 1 . Parts Lost 6 | . . . 6 Power 2 | . . . 2 Propulsion 2 | . . . 2 Utility 1 | . . . 1 Weapon 1 | . . . 1 Highest Loss Streak 5 | . . . 5 To Critical Strikes . | . . . . Average Slot Usage (%) 82 | . 85 88 75 Engine 12 | . 14 14 10 Leg 28 | . 28 28 30 Device 1 | . . 3 1 Storage 12 | . 14 14 11 Ballistic Gun 25 | . 28 28 21 Naked Turns . | . . . . Heaviest Build 36 | 14 29 30 36 Greatest Support 30 | 20 20 20 30 Greatest Overweight (x) 2 | . 1 1 2 Average Overweight (x) . | . . 1 . Largest Inventory Capacity 15 | 8 15 15 15 Average Capacity 14 | 6 11 15 15 Most Carried 15 | 5 5 10 15 Average Carried 9 | 2 3 8 12 Final Capacity 15 | 8 15 15 15 Final Carried 11 | 2 4 9 11 Class Distribution -------------------- 100% | Mutant Dominant Class ---------------- Mutant | -10/Materials Mutant | -10/Mines Mutant | -9/Materials Resources | -11 -10 -10 -9 ----------- Run | Jun Mat Min Mat Matter Collected 685 | 202 95 119 269 Remotely . | . . . . Salvage Created 752 | . 95 88 569 Parts 43 | . 3 7 33 Haulers Intercepted . | . . . . Recyclers Shooed . | . . . . Parts Field Recycled . | . . . . Retrieved Matter . | . . . . Parts Self-Destructed . | . . . . Prevented . | . . . . Kills | -11 -10 -10 -9 ------- Run | Jun Mat Min Mat Combat Hostiles Destroyed 16 | . 2 2 12 Guns 16 | . 2 2 12 Classes Destroyed 5 | . 2 . 3 Watcher 2 | . 1 . 1 Swarmer 2 | . . . 2 Grunt 8 | . 2 2 4 Duelist 1 | . . . 1 Sentry 5 | . . . 5 Best Kill Streak 3 | . 2 2 3 Combat Bots Only 3 | . 2 2 3 Max Kills in Single Turn 1 | . 1 1 1 Gunslinging . | . . . . Exploded . | . . . . Melee . | . . . . Uniques/NPCs Destroyed . | . . . . Combat | -11 -10 -10 -9 -------- Run | Jun Mat Min Mat Damage Taken 1414 | . 92 55 1267 Core 253 | . 45 14 194 Absorbed by Shields . | . . . . Core Remaining (%) 88 | 100 . 76 . Volleys Fired 69 | . 16 5 48 Largest 2 | . 2 2 2 Hottest 46 | . 40 40 46 Shots Fired 137 | . 32 10 95 Gun 137 | . 32 10 95 Cannon . | . . . . Launcher . | . . . . Special . | . . . . Kinetic 137 | . 32 10 95 Thermal . | . . . . Explosive . | . . . . Electromagnetic . | . . . . Robot Hit Streak 18 | . 10 8 18 Robot Miss Streak 6 | . 6 . 4 Penetration Max . | . . . . Secondary Targets 1 | . . . 1 Max Gunslinging Chain 1 | . . . 1 Shots Hit Robots 98 | . 19 8 71 Core Hits 35 | . 5 5 25 Critical Kills . | . . . . Critical Parts Destroyed . | . . . . Critical Strikes . | . . . . Melee Attacks . | . . . . Impact . | . . . . Slashing . | . . . . Piercing . | . . . . Sneak Attacks . | . . . . Combat Hostiles . | . . . . Follow-up Attacks . | . . . . Damage Inflicted 1351 | . 253 100 998 Guns 1351 | . 253 100 998 Cannons . | . . . . Explosions . | . . . . Melee . | . . . . Ramming . | . . . . Kinetic 1351 | . 253 100 998 Thermal . | . . . . Explosive . | . . . . Electromagnetic . | . . . . Impact . | . . . . Slashing . | . . . . Piercing . | . . . . Highest Corruption . | . . . . Average Corruption . | . . . . Corruption Purged . | . . . . Corruption Blocked . | . . . . Overload Shots . | . . . . Overflow Damage . | . . . . Projectiles . | . . . . Explosions . | . . . . Melee . | . . . . Knockbacks . | . . . . Impact . | . . . . Kinetic . | . . . . Secondary . | . . . . Self-Inflicted Damage . | . . . . Shots . | . . . . Rammed . | . . . . Targets Rammed . | . . . . Kicked . | . . . . Crushed . | . . . . Highest Temperature 38 | . 2 2 38 Average Temperature 8 | . 2 2 9 Received Heat Transfer 561 | . 54 30 477 Siege Activations . | . . . . Robots Corrupted . | . . . . Combat Hostiles . | . . . . Parts Fried . | . . . . Impact Corruptions . | . . . . Robots Melted . | . . . . Combat Hostiles . | . . . . Parts Melted . | . . . . Heat Transferred . | . . . . Parts Sabotaged . | . . . . Parts Stolen . | . . . . Parts Stripped . | . . . . Power Chain Reactions . | . . . . Missiles Intercepted . | . . . . Alert | -11 -10 -10 -9 ------- Run | Jun Mat Min Mat Peak Influence 258 | . 80 81 258 Initial 31 | . . 31 . Average 46 | . 46 33 62 Maximum Alert Level 1 | . . . 1 Low Security (%) 98 | 100 100 100 96 Level 1 1 | . . . 3 Level 2 . | . . . . Level 3 . | . . . . Level 4 . | . . . . Level 5 . | . . . . High Security . | . . . . Max Security . | . . . . Squads Dispatched 1 | . . . 1 Investigation . | . . . . Extermination . | . . . . Reinforcement 1 | . . . 1 Assault . | . . . . Garrison . | . . . . Intercept . | . . . . Searches Triggered . | . . . . Construction Impeded . | . . . . Haulers Reinforced . | . . . . Active Scanning Responses . | . . . . Cargo Convoy Interrupts . | . . . . Stealth | -11 -10 -10 -9 --------- Run | Jun Mat Min Mat Distress Signals . | . . . . Communications Jammed . | . . . . Distress Signals . | . . . . Times Spotted 32 | . 5 2 25 Peak Tracking Total 7 | . 2 2 7 Tactical Retreats 1 | . . . 1 Traps | -11 -10 -10 -9 ------- Run | Jun Mat Min Mat Traps Triggered . | . . . . Indirectly . | . . . . Trap Hack Attempts . | . . . . Triggered . | . . . . Disarmed . | . . . . Reprogrammed . | . . . . Reused . | . . . . Traps Extracted . | . . . . Installed . | . . . . Triggered . | . . . . Machines | -11 -10 -10 -9 ---------- Run | Jun Mat Min Mat Machines Disabled . | . . . . Max in Single Turn . | . . . . Machines Repaired . | . . . . Machines Sabotaged . | . . . . Overloaded Fab Kills . | . . . . Hacking | -11 -10 -10 -9 --------- Run | Jun Mat Min Mat Machines Accessed 8 | . 1 . 7 Terminals 6 | . 1 . 5 Fabricators . | . . . . Repair Stations . | . . . . Recycling Units 1 | . . . 1 Scanalyzers 1 | . . . 1 Garrison Access . | . . . . Total Hacks 22 | . 2 . 20 Successful 9 | . 1 . 8 Failed 13 | . 1 . 12 Catastrophic 1 | . . . 1 Database Lockouts . | . . . . Manual 15 | . 2 . 13 Terminals 17 | . 2 . 15 Fabricators . | . . . . Repair Stations . | . . . . Recycling Units 1 | . . . 1 Scanalyzers 4 | . . . 4 Garrison Access . | . . . . Terminal Hacks 6 | . 1 . 5 Robot Analysis 2 | . . . 2 Branch Access Points 3 | . 1 . 2 Unreport Threat 1 | . . . 1 Fabricator Hacks . | . . . . Repair Station Hacks . | . . . . Recycling Unit Hacks 1 | . . . 1 Report Inventory 1 | . . . 1 Scanalyzer 2 | . . . 2 Insert Component 1 | . . . 1 Analyze 1 | . . . 1 Garrison Access Hacks . | . . . . Unauthorized Hacks . | . . . . Terminals . | . . . . Fabricators . | . . . . Repair Stations . | . . . . Recycling Units . | . . . . Scanalyzers . | . . . . Garrison Access . | . . . . Data Cores Recovered . | . . . . Used . | . . . . Hacking Detections 7 | . 1 . 6 Full Trace Events 2 | . . . 2 Feedback Events . | . . . . Feedback Blocked . | . . . . Robot Schematics Acquired . | . . . . Robots Built . | . . . . Authchips . | . . . . Time . | . . . . Total Robot Build Rating . | . . . . Part Schematics Acquired . | . . . . Parts Built . | . . . . Authchips . | . . . . Time . | . . . . Total Part Build Rating . | . . . . Parts Repaired . | . . . . Time . | . . . . Parts Recycled . | . . . . Recycled Matter . | . . . . Retrieved Matter . | . . . . Retrieved Components . | . . . . Parts Scanalyzed 1 | . . . 1 Part Schematics Acquired . | . . . . Parts Damaged . | . . . . Bothacking | -11 -10 -10 -9 ------------ Run | Jun Mat Min Mat Used RIF Installer . | . . . . Robots Hacked . | . . . . Non-combat . | . . . . Combat . | . . . . Robot Hacks Applied . | . . . . Relay Couplers Released . | . . . . Fabnet Peak Effective % . | . . . . Robots Rewired . | . . . . Allies Hacked . | . . . . Hacks Repelled . | . . . . Allies | -11 -10 -10 -9 -------- Run | Jun Mat Min Mat Total Allies 1 | . . 1 . Largest Group 1 | . . 1 1 Highest-Rated Group 31 | . . 31 31 Highest-Rated Ally 31 | . . 31 31 Total Orders . | . . . . Ally Attacks . | . . . . Total Damage . | . . . . Kills . | . . . . Allies Corrupted . | . . . . Allies Melted . | . . . . Intel | -11 -10 -10 -9 ------- Run | Jun Mat Min Mat Robot Analysis Total 2 | . . . 2 Derelict Logs Recovered 1 | . . 1 . Drone Launches . | . . . . Drone Recoveries . | . . . . Exploration | -11 -10 -10 -9 ------------- Run | Jun Mat Min Mat Turns Passed 2203 | 56 389 868 890 Spaces Moved 1081 | 39 193 445 404 Core 7 | 7 . . . Treads . | . . . . Legs 1074 | 32 193 445 404 Wheels . | . . . . Hover . | . . . . Flight . | . . . . Fastest Speed 50 | 50 120 190 120 Average Speed 169 | 107 153 190 160 Slowest Speed 260 | 120 190 190 260 Overloaded Moves . | . . . . Propulsion Burnouts . | . . . . Robots Hopped . | . . . . Cave-ins Triggered . | . . . . Exploration Rate (%) 46 | 4 42 100 39 Regions Visited 3 Branch Regions 1 Pre-discovered Areas . | . . . . Known Exits Taken 1 | . 1 . . Unknown Exits Taken 2 | 1 . 1 . Scrap Searched 2 | . . 2 . Spaces Dug . | . . . . Terrain Destroyed . | . . . . Melee . | . . . . Projectile . | . . . . AOE . | . . . . Terrain Rammed . | . . . . Walls Destroyed . | . . . . Machines Disabled . | . . . . Actions | -11 -10 -10 -9 --------- Run | Jun Mat Min Mat Total 1323 | 52 256 458 557 Wait 125 | . 43 2 80 Move 1078 | 38 192 444 404 Hop . | . . . . Pick Up 21 | 6 3 6 6 Fast Attach 4 | 2 . . 2 Attach 13 | 5 1 1 6 Detach 3 | 1 . . 2 Swap 5 | . . . 5 Drop 5 | . 1 . 4 Fire 69 | . 16 5 48 Melee . | . . . . Ram . | . . . . Kick . | . . . . Crush . | . . . . Escape Stasis . | . . . . Rewire . | . . . . Trap . | . . . . Miscellaneous . | . . . . Route ------- -11/Junkyard -10/Materials (discovered 3 exits: *Mat / *Min x2) -10/Mines (discovered 2 exits: *Mat x2) -9/Materials (discovered 3 exits: [*Mat] / Min x2) History --------- Turn | Location | Event 14 | -11/Junkyard | Discovered new exit (range 15) 57 | -11/Junkyard | Entered Materials 179 | -10/Materials | Identified exit to Mines 256 | -10/Materials | Discovered new exit (range 11) 311 | -10/Materials | Build established: Mutant 446 | -10/Materials | Entered Mines 670 | -10/Mines | Discovered new exit (range 10) 1103 | -10/Mines | Found a damaged Exp. Sensor Array with a note attached 1107 | -10/Mines | Found Prototype Device 1108 | -10/Mines | Identified Exp. Sensor Array 1112 | -10/Mines | Received a Mining Laser from a helpful Derelict 1248 | -10/Mines | Discovered new exit (range 11) 1314 | -10/Mines | Entered Materials 1314 | -9/Materials | Accompanied by 1 ally 1314 | -9/Materials | Evolved 2 slots: Propulsion x1, Utility x1 1356 | -9/Materials | Identified exit to Mines 1939 | -9/Materials | Discovered new exit (range 8) 2204 | -9/Materials | Self-destructed Last Messages --------------- Purged threat record, alert level lowered. >>Access(Branch) Found 2 branch access points: (49,50) Mines (73,67) Mines Map updated. 02143_ K-01 Serf cleans the Terminal. 02148_ Destroyed Hover Unit. 02159_ C-30 ARC bursts open, deploying its payload. 02159_ B-36 Bruiser unfolds itself. 02159_ G-34 Mercenary unfolds itself. 02160_ K-01 Serf cleans the Terminal. 02165_ K-01 Serf collects debris. 02168_ Imp. Ion Engine destroyed. 02169_ K-01 Serf collects debris. 02179_ Lgt. Armor Plating destroyed. 02186_ Aluminum Leg destroyed. 02187_ Hvy. Assault Rifle destroyed. 02188_ L-31 Rogue destroyed. 02190_ Aluminum Leg destroyed. Map ----- +----------------------------------------------------+ | ????????????????????????# # | | ????????????????????????# + | | ????????????????????????# # | | ????????????????????????# #######+ | | ????????????????????????# #?# | | ????????????????????????# #?# """ | | ????????????????????????###########?# """ | | ????????????????????????????????????# """ | | ????????????????????????????????????# | | ????????????????????????????????????# """ | | ????????????????????????????????????# """ | | ????????????????????????????????????# """ | | ????????????????????????????????????#= = | | ?????????????????????????##?????????##/### | | ????????????????????????## ########??# #?? | | ????????????????????????# % #??# #?? | | ????????????????????????# % #??# #?? | | ????????????????????????# ! #??# #?? | | ????????????????????????# """"[ #??# #?? | | ????????????????????????# """" %[#?## ### | | ????????????########????# """"" ### | | ????????????# ####+# + | | ??????# ???# g/ + ! ### | | ??????# # % g g#?# #####+#####?# ## | | ??????# + b!#?# ### ##### #? | | ????????????# w@%### #? | | ????????????# /g T " #? | | ????????????########## %" #? | | ?????????????????????# k## ##### #? | | ?????????????????????# ########???# #? | | ?????????????????????# #??????????# #? | | ?????????????????????# #??????????# #? | | ???????????????????? #??????????# #? | | ??????????????????? ##??????????# #? | | ?????????????????? #???????????# #? | | ????????????????? #???????????? ? | | ???????????????? #???????????? ? | | ???????????????######## #???????????? ?? | | ??????????????????????# #????????????????? | | ??????????????????????# #????????????????? | | ??????????????????????# ?????????????????? | | ??????????????????????# ?????????????????? | | ??????????????????????? ?????????????????? | | ?????????????????????????????????????????? | | ?????????????????????????????????????????? | | ?????????????????????????????????????????? | | ?????????????????????????????????????????? | | ?????????????????????????????????????????? | | ?????????????????????????????????????????? | | ?????????????????????????????????????????? | +----------------------------------------------------+ Best States ------------- Heat Dissipation 28 Energy Generation 12 Energy Capacity 265 Matter Stores 300 Matter Capacity 300 Sight Range 16 Robot Scan Range 20 Terrain Scan Density 10 Armor Coverage 150 Evasion (%) 55 Item Schematics ----------------- None Robot Schematics ------------------ None Fabricated ------------ Nothing Alien Tech Used ----------------- None Achievements -------------- None Challenges ------------ None Game ------ Seed WardroneHardcellStick Manual? 0 Play Time 00:12:23 Cumulative 47.3 hours Start 2023.10.12 @ 14:02:54 End 2023.10.12 @ 14:12:57 Sessions 1 Manual Loads 0 Difficulty Rogue Special Mode None Game No. 87 Rogue 84 Adventurer 3 Explorer 0 Win Type - Total 0 Types 0/0/0/0/0/0/0/0/0 Lore% 26 Gallery% 44 Achievement% 32 Wizard Run 0 Options --------- ASCII 0 Keyboard 0 Movement Mouse Keybinds 0 Fullscreen 2 Font 18/SmallcapsGlow Map View 76x50 Tactical HUD 1 Map Filters NONE Filters NONE Steam 1 RUN: 7699d06c-e58f-4f2a-99e0-e57b1b482d54